[Event "EU-ch 12th"]
[Site "Aix les Bains"]
[Date "2011.03.28"]
[Round "7"]
[White "Nikolic, Predrag"]
[Black "Sutovsky, Emil"]
[Result "0-1"]
[ECO "E62"]
[WhiteElo "2596"]
[BlackElo "2692"]
[PlyCount "66"]
[EventDate "2011.03.22"]
[EventType "swiss"]
[EventRounds "11"]
[EventCountry "FRA"]
[SourceTitle "CBM 142 Extra"]
[Source "ChessBase"]
[SourceDate "2011.06.27"]
[SourceVersion "1"]
[SourceVersionDate "2011.06.27"]
[SourceQuality "1"]
[TimeControl "40/5400+30:1800+30"]

1. d4 Nf6 2. Nf3 g6 3. c4 Bg7 4. g3 O-O 5. Bg2 d6 (5... d5) 6. O-O Nc6 7. Nc3
Bf5 (7... a6 8. e4 Rb8 9. h3 b5 10. cxb5 axb5 11. Re1 b4 12. Nd5 Nd7 13. Bg5 h6
14. Rc1 hxg5 15. Rxc6 Bb7 (15... b3 $142 16. axb3 Bb7 17. Rc2 c6 18. Nc3 c5 19.
dxc5 Nxc5 20. b4 $36 {Avrukh vol 2 GM}) 16. Nxb4 {Leitao,R (2623)-Pulvett,D 
(2383) San Cristobal Bolivar op 1st 2012 (2) 1/2}) 8. d5 (8. b3 Ne4 9. Bb2 Nxc3
10. Bxc3 Be4) 8... Na5 9. Nd4 Bd7 10. Qd3 (10. b3 c6 11. dxc6 bxc6) 10... c5
11. Nc2 a6 12. b3 b5 13. Rb1 Rb8 14. Bd2 e6 15. dxe6 Bxe6 16. Ne3 Qd7 17. Ned5
$146 (17. Nxb5 {[%cal Gd2a5]} Nxb3 18. axb3 axb5 $11) (17. Ne4 {Burmakin,V 
(2586)-Timagin,P (2297) Chigorin Memorial 09th 2001 (2) 1-0}) (17. Ncd5 Nc6 18.
Nf4 b4 19. Rbd1 Ne5 20. Qc2 $16 {Laylo inf 111}) 17... Ng4 (17... Nxd5 $5) 18.
Ne4 $1 {[%csl Rd6]} Nc6 19. h3 f5 20. Ng5 (20. hxg4 fxe4 21. Qxe4 Ne5 (21...
Bxg4)) 20... Nge5 21. Qc2 bxc4 22. Nxe6 Qxe6 23. bxc4 Nd4 $1 {[%csl Rc2,Re2]}
24. Nf4 Qd7 25. Qd1 Rxb1 26. Qxb1 (26. Bd5+) 26... g5 27. Nh5 Nxe2+ 28. Kh2 f4
29. gxf4 gxf4 30. Bd5+ Kh8 31. Qe4 Nd4 32. Qg2 Ng6 33. Rb1 $4 $138 (33. Qg4)
33... Qf5 {[%cal Gf5h5,Gf5b1]} 0-1

[Event "Tata Steel-B 79th"]
[Site "Wijk aan Zee"]
[Date "2017.01.15"]
[Round "2"]
[White "Xiong, Jeffery"]
[Black "Van Foreest, Jorden"]
[Result "1-0"]
[ECO "E62"]
[WhiteElo "2667"]
[BlackElo "2612"]
[PlyCount "127"]
[EventDate "2017.01.14"]
[EventType "tourn"]
[EventRounds "13"]
[EventCountry "NED"]
[EventCategory "14"]
[SourceTitle "CBM 177"]
[Source "ChessBase"]
[SourceDate "2017.03.16"]
[SourceVersion "1"]
[SourceVersionDate "2017.03.16"]
[SourceQuality "1"]
[TimeControl "40/6000+30:20/3000+30:900+30"]

1. d4 {[%emt 0:00:00]} d6 {[%emt 0:00:10]} 2. Nf3 {[%emt 0:00:59]} Nf6 {
[%emt 0:00:32]} 3. c4 {[%emt 0:00:32]} g6 {[%emt 0:00:08]} 4. g3 {[%emt 0:00:
49]} Bg7 {[%emt 0:00:05]} 5. Bg2 {[%emt 0:00:06]} O-O {[%emt 0:00:06]} 6. Nc3 {
[%emt 0:00:20]} Nc6 {[%emt 0:00:06]} 7. O-O {[%emt 0:00:13]} Bf5 {[%emt 0:00:
04]} 8. d5 {[%emt 0:00:51]} Na5 {[%emt 0:00:06]} 9. Nh4 {[%emt 0:00:31]} Bd7 {
[%emt 0:02:53]} 10. Qd3 {[%emt 0:00:19]} c5 {[%emt 0:01:36]} 11. Bd2 {[%emt 0:
07:39]} a6 {[%emt 0:03:10]} 12. b3 {[%emt 0:01:59]} b5 {[%emt 0:04:28]} 13.
Rab1 {[%emt 0:17:39]} Rb8 {[%emt 0:08:55]} 14. Ne4 {[%emt 0:03:11]} Nxe4 {
[%emt 0:10:12]} 15. Bxe4 {[%emt 0:00:56]} e5 {[%emt 0:00:07]} 16. dxe6 {
[%emt 0:02:24]} Bxe6 {[%emt 0:00:09]} 17. Bd5 {[%emt 0:03:09]} Bxd5 $146 {
[%emt 0:01:39]} (17... Re8 18. Bxe6 Rxe6 19. Ng2 Nc6 20. Nf4 Re8 21. Rfd1 Nd4
22. e3 Nf3+ 23. Kg2 Nxd2 24. Rxd2 Qa5 25. Rbd1 Be5 26. Nd5 Bg7 27. Qe2 Re4 28.
Nf4 bxc4 29. bxc4 Bf8 30. Nd5 Bg7 31. Qd3 Ree8 32. h4 h5 33. Nf4 Bc3 34. Nxg6
fxg6 35. Qxg6+ Bg7 36. Rxd6 Re7 37. R1d5 Qc7 38. Rxh5 Qb7+ 39. Rdd5 Rf7 40.
Qh7+ Kf8 41. e4 Re8 42. Rhf5 Ree7 43. Rd8+ Re8 44. Rxe8+ Kxe8 45. Qg8+ Bf8 46.
Qxf7+ {1-0 (46) Khismatullin,D (2626)-Savitskiy,S (2405) Moscow 2016}) 18. Qxd5
{[%emt 0:00:04]} Qb6 {[%emt 0:05:20]} 19. Qd3 {[%emt 0:08:48]} Nc6 {[%emt 0:02:
47]} 20. Ng2 {[%emt 0:05:08]} a5 {[%emt 0:13:02]} 21. Bf4 {[%emt 0:07:30]} Rfe8
{[%emt 0:09:29]} 22. Rfd1 {[%emt 0:08:40]} Nd4 {[%emt 0:04:18]} 23. e3 {
[%emt 0:06:03]} Nf3+ {[%emt 0:01:28]} 24. Kh1 {[%emt 0:00:10]} Ne5 {[%emt 0:02:
38]} 25. Bxe5 {[%emt 0:02:43]} Bxe5 {[%emt 0:00:28]} 26. Kg1 {[%emt 0:07:24]}
Qc6 {[%emt 0:01:02]} 27. Rbc1 {[%emt 0:05:48]} a4 {[%emt 0:01:33]} 28. Rc2 {
[%emt 0:05:57]} bxc4 {[%emt 0:02:40]} 29. bxc4 {[%emt 0:00:12]} Rb4 {[%emt 0:
01:40]} 30. Ne1 {[%emt 0:01:30]} Reb8 {[%emt 0:06:03]} 31. f4 {[%emt 0:03:44]}
Bg7 {[%emt 0:00:31]} 32. Qxd6 {[%emt 0:00:47]} Qxd6 {[%emt 0:02:42]} 33. Rxd6 {
[%emt 0:00:02]} a3 {[%emt 0:00:40]} 34. Kf1 {[%emt 0:02:06]} Rb1 {[%emt 0:04:
21]} 35. Ke2 {[%emt 0:01:05]} h5 {[%emt 0:05:53]} 36. Rd1 {[%emt 0:00:49]} R1b2
{[%emt 0:01:35]} 37. Rd3 {[%emt 0:00:22]} Ra8 {[%emt 0:01:33]} 38. Kd2 {
[%emt 0:01:09]} Bf6 {[%emt 0:02:20]} 39. e4 {[%emt 0:01:51]} Rb1 {[%emt 0:02:
52]} 40. Rc1 {[%emt 0:00:00]} Rbb8 {[%emt 0:03:34]} 41. Ke2 {[%emt 0:24:09]}
Bd4 {[%emt 0:09:13]} 42. Nf3 {[%emt 0:01:44]} Rb2+ {[%emt 0:06:49]} 43. Rd2 {
[%emt 0:00:08]} Bf6 {[%emt 0:00:10]} 44. Ne1 {[%emt 0:07:10]} Bd4 {[%emt 0:03:
19]} 45. Nf3 {[%emt 0:00:42]} Bf6 {[%emt 0:00:10]} 46. Ne1 {[%emt 0:00:07]} Bd4
{[%emt 0:00:04]} 47. e5 {[%emt 0:03:36]} Rb4 {[%emt 0:13:42]} 48. Nf3 {[%emt 0:
00:42]} Bb2 {[%emt 0:00:13]} 49. Rcc2 {[%emt 0:00:22]} Raa4 {[%emt 0:00:06]}
50. Rd8+ {[%emt 0:01:01]} Kg7 {[%emt 0:00:02]} 51. Rd7 {[%emt 0:05:38]} Kg8 {
[%emt 0:01:16]} 52. Ng5 {[%emt 0:01:10]} Rxc4 {[%emt 0:06:27]} 53. Rxc4 {
[%emt 0:00:07]} Rxc4 {[%emt 0:00:03]} 54. Nxf7 {[%emt 0:00:19]} Bd4 {[%emt 0:
00:51]} 55. e6 {[%emt 0:03:02]} Bf6 {[%emt 0:04:35]} 56. Nh6+ {[%emt 0:01:12]}
Kh8 {[%emt 0:01:28]} 57. Nf7+ {[%emt 0:00:02]} Kg8 {[%emt 0:00:02]} 58. Ne5 {
[%emt 0:05:16]} Rc2+ {[%emt 0:01:22]} 59. Kf3 {[%emt 0:00:46]} Rxa2 {[%emt 0:
03:52]} 60. e7 {[%emt 0:00:00]} Bxe7 {[%emt 0:00:07]} 61. Rxe7 {[%emt 0:00:07]}
Rxh2 {[%emt 0:00:05]} 62. Ra7 {[%emt 0:00:26]} a2 {[%emt 0:00:09]} 63. Nxg6 {
[%emt 0:00:25]} c4 {[%emt 0:00:02]} 64. f5 {[%emt 0:00:16]} 1-0